[Event "*** Titled Tuesday Blitz"]
[Site "Chess.com"]
[Date "2021.03.30"]
[Round "11"]
[White "sau6on"]
[Black "ChessFunMaker"]
[Result "1-0"]
[WhiteElo "2377"]
[BlackElo "2250"]
[TimeControl "180+1"]
[EndTime "12:07:54 PDT"]
[Termination "sau6on won on time"]

1. e4 {[%clk 0:03:00.9]} 1... e5 {[%clk 0:02:59.2]} 2. Nc3 {[%clk 0:03:00.2]}
2... Nf6 {[%clk 0:02:58.7]} 3. g3 {[%clk 0:03:00.2]} 3... d5 {[%clk 0:02:58.7]}
4. exd5 {[%clk 0:03:00.3]} 4... Nxd5 {[%clk 0:02:58.9]} 5. Bg2 {[%clk
0:03:00.9]} 5... Be6 {[%clk 0:02:53.5]} 6. Nf3 {[%clk 0:02:59.8]} 6... Nc6
{[%clk 0:02:52.6]} 7. O-O {[%clk 0:02:59.4]} 7... Be7 {[%clk 0:02:52.2]} 8. Re1
{[%clk 0:02:59.5]} 8... f6 {[%clk 0:02:45.7]} 9. d4 {[%clk 0:02:58.7]} 9... Nxc3
{[%clk 0:02:32.2]} 10. bxc3 {[%clk 0:02:58.1]} 10... O-O {[%clk 0:01:58.6]} 11.
Qd3 {[%clk 0:02:05.8]} 11... Bg4 {[%clk 0:01:22.5]} 12. Rb1 {[%clk 0:01:52.8]}
12... Rb8 {[%clk 0:01:05.6]} 13. dxe5 {[%clk 0:01:04.9]} 13... Qxd3 {[%clk
0:00:57]} 14. cxd3 {[%clk 0:01:04.1]} 14... fxe5 {[%clk 0:00:51]} 15. Nxe5
{[%clk 0:00:56.5]} 15... Nxe5 {[%clk 0:00:33.7]} 16. Rxe5 {[%clk 0:00:57.4]}
16... Bf6 {[%clk 0:00:29.8]} 17. Reb5 {[%clk 0:00:55.2]} 17... b6 {[%clk
0:00:18]} 18. d4 {[%clk 0:00:52]} 18... Be2 {[%clk 0:00:11.8]} 19. R5b2 {[%clk
0:00:45.7]} 19... Bd3 {[%clk 0:00:11.7]} 20. Ra1 {[%clk 0:00:45.1]} 20... c5
{[%clk 0:00:11.1]} 21. Be3 {[%clk 0:00:44.4]} 21... Rbd8 {[%clk 0:00:06.7]} 22.
Rd1 {[%clk 0:00:40.2]} 22... cxd4 {[%clk 0:00:04.3]} 23. Bxd4 {[%clk 0:00:33.9]}
23... Bxd4 {[%clk 0:00:02.7]} 24. cxd4 {[%clk 0:00:34.3]} 24... Bc4 {[%clk
0:00:01.8]} 25. d5 {[%clk 0:00:33.7]} 25... Kh8 {[%clk 0:00:01.5]} 26. a3 {[%clk
0:00:32.4]} 1-0

[Event "*** Titled Tuesday Blitz"]
[Site "Chess.com"]
[Date "2021.03.30"]
[Round "11"]
[White "paulrusan"]
[Black "jamalm2"]
[Result "1-0"]
[WhiteElo "2314"]
[BlackElo "1994"]
[TimeControl "180+1"]
[EndTime "12:07:57 PDT"]
[Termination "paulrusan won on time"]

1. e4 {[%clk 0:02:59.1]} 1... c5 {[%clk 0:02:58.4]} 2. b4 {[%clk 0:02:58.4]}
2... cxb4 {[%clk 0:02:56.3]} 3. Bb2 {[%clk 0:02:57.9]} 3... d6 {[%clk
0:02:54.6]} 4. d4 {[%clk 0:02:57.5]} 4... Nc6 {[%clk 0:02:48.8]} 5. d5 {[%clk
0:02:56.6]} 5... Ne5 {[%clk 0:02:47.5]} 6. f4 {[%clk 0:02:57.1]} 6... Ng6 {[%clk
0:02:47.1]} 7. f5 {[%clk 0:02:57.2]} 7... Ne5 {[%clk 0:02:45.8]} 8. Nf3 {[%clk
0:02:57.5]} 8... Nxf3+ {[%clk 0:02:41.9]} 9. Qxf3 {[%clk 0:02:57]} 9... Nf6
{[%clk 0:02:39.7]} 10. Be2 {[%clk 0:02:54.5]} 10... g6 {[%clk 0:02:35.8]} 11.
O-O {[%clk 0:02:31.6]} 11... Bg7 {[%clk 0:02:34.7]} 12. g4 {[%clk 0:02:08.4]}
12... O-O {[%clk 0:02:29.1]} 13. g5 {[%clk 0:02:07.7]} 13... Nh5 {[%clk
0:02:28.6]} 14. Bxg7 {[%clk 0:02:07.1]} 14... Nxg7 {[%clk 0:02:23.7]} 15. f6
{[%clk 0:02:06.8]} 15... exf6 {[%clk 0:02:23.2]} 16. gxf6 {[%clk 0:02:06.8]}
16... Ne8 {[%clk 0:02:19.4]} 17. a3 {[%clk 0:01:57.3]} 17... bxa3 {[%clk
0:02:01.6]} 18. Nxa3 {[%clk 0:01:54.9]} 18... Bd7 {[%clk 0:02:01.3]} 19. c4
{[%clk 0:01:48.9]} 19... a6 {[%clk 0:01:59.3]} 20. Nc2 {[%clk 0:01:41.9]} 20...
b5 {[%clk 0:01:55.4]} 21. c5 {[%clk 0:01:35.6]} 21... dxc5 {[%clk 0:01:53.7]}
22. e5 {[%clk 0:01:35.6]} 22... c4 {[%clk 0:01:50.2]} 23. Nd4 {[%clk 0:01:31.9]}
23... Qb6 {[%clk 0:01:48.9]} 24. Rad1 {[%clk 0:01:28]} 24... Rc8 {[%clk
0:01:34.6]} 25. Qe3 {[%clk 0:01:16.1]} 25... b4 {[%clk 0:01:32.6]} 26. Qh6
{[%clk 0:01:09]} 26... c3 {[%clk 0:01:22.7]} 27. Rf4 {[%clk 0:00:59.7]} 27... c2
{[%clk 0:01:16]} 28. Rc1 {[%clk 0:00:59.5]} 28... g5 {[%clk 0:00:13.5]} 29. Bd3
{[%clk 0:00:58]} 29... Nxf6 {[%clk 0:00:06.1]} 30. exf6 {[%clk 0:00:51.7]} 30...
Bf5 {[%clk 0:00:03.4]} 31. Bxf5 {[%clk 0:00:46.5]} 1-0

[Event "*** Titled Tuesday Blitz"]
[Site "Chess.com"]
[Date "2021.03.30"]
[Round "11"]
[White "nikitakhoroshev"]
[Black "arminmusovic"]
[Result "1-0"]
[WhiteElo "2684"]
[BlackElo "2578"]
[TimeControl "180+1"]
[EndTime "12:07:59 PDT"]
[Termination "nikitakhoroshev won by resignation"]

1. e4 {[%clk 0:03:00.9]} 1... c6 {[%clk 0:03:00]} 2. Nc3 {[%clk 0:03:00]} 2...
d5 {[%clk 0:03:00.9]} 3. Nf3 {[%clk 0:03:00.7]} 3... dxe4 {[%clk 0:03:00.7]} 4.
Nxe4 {[%clk 0:03:01.6]} 4... Nf6 {[%clk 0:03:01.4]} 5. Nxf6+ {[%clk 0:03:01.7]}
5... exf6 {[%clk 0:03:02.3]} 6. Bc4 {[%clk 0:03:02.1]} 6... Be7 {[%clk
0:03:00.8]} 7. O-O {[%clk 0:03:01.4]} 7... O-O {[%clk 0:03:01.4]} 8. h3 {[%clk
0:03:01.6]} 8... Re8 {[%clk 0:02:56.7]} 9. Re1 {[%clk 0:03:01.7]} 9... Nd7
{[%clk 0:02:56.1]} 10. d4 {[%clk 0:03:01.6]} 10... Nf8 {[%clk 0:02:56.5]} 11.
Bf4 {[%clk 0:02:57.1]} 11... Be6 {[%clk 0:02:53.7]} 12. Bb3 {[%clk 0:02:55.5]}
12... a5 {[%clk 0:02:53]} 13. Qd3 {[%clk 0:02:53.1]} 13... a4 {[%clk 0:02:52]}
14. Bxe6 {[%clk 0:02:53.2]} 14... fxe6 {[%clk 0:02:49]} 15. Re2 {[%clk
0:02:51.7]} 15... b5 {[%clk 0:02:47.2]} 16. c4 {[%clk 0:02:51.3]} 16... bxc4
{[%clk 0:02:46.6]} 17. Qxc4 {[%clk 0:02:52.2]} 17... Qd5 {[%clk 0:02:47.4]} 18.
Rc1 {[%clk 0:02:52.3]} 18... Ra5 {[%clk 0:02:45.9]} 19. Qxc6 {[%clk 0:02:46.2]}
19... Qxc6 {[%clk 0:02:44.6]} 20. Rxc6 {[%clk 0:02:47.1]} 20... Rb5 {[%clk
0:02:44.4]} 21. Ne1 {[%clk 0:02:44.2]} 21... Rd8 {[%clk 0:02:39.2]} 22. Be3
{[%clk 0:02:43.7]} 22... Rdb8 {[%clk 0:02:37]} 23. Nd3 {[%clk 0:02:43.4]} 23...
Kf7 {[%clk 0:02:32.2]} 24. Rc4 {[%clk 0:02:43.2]} 24... Ra5 {[%clk 0:02:30.9]}
25. Rec2 {[%clk 0:02:40.7]} 25... Nd7 {[%clk 0:02:27.4]} 26. Rc8 {[%clk
0:02:40]} 26... Rab5 {[%clk 0:02:25.3]} 27. Rxb8 {[%clk 0:02:39.8]} 27... Rxb8
{[%clk 0:02:24.7]} 28. Kf1 {[%clk 0:02:39.3]} 28... Nb6 {[%clk 0:02:24.9]} 29.
Ke2 {[%clk 0:02:37.8]} 29... Nd5 {[%clk 0:02:24]} 30. Rc4 {[%clk 0:02:37.8]}
30... a3 {[%clk 0:02:22.8]} 31. bxa3 {[%clk 0:02:34.3]} 31... Bxa3 {[%clk
0:02:21.5]} 32. Kd2 {[%clk 0:02:30.5]} 32... g5 {[%clk 0:02:20.5]} 33. Ra4
{[%clk 0:02:29.1]} 33... Bd6 {[%clk 0:02:19.3]} 34. Ra7+ {[%clk 0:02:26.7]}
34... Kg6 {[%clk 0:02:19.8]} 35. Ra6 {[%clk 0:02:27]} 35... Rd8 {[%clk
0:02:18.7]} 36. a4 {[%clk 0:02:22.4]} 36... h5 {[%clk 0:02:17.2]} 37. a5 {[%clk
0:02:21.2]} 37... Kf5 {[%clk 0:02:17.4]} 38. Ra7 {[%clk 0:02:19.8]} 38... Rc8
{[%clk 0:02:12.1]} 39. a6 {[%clk 0:02:18.7]} 39... Bb4+ {[%clk 0:02:12.5]} 40.
Ke2 {[%clk 0:02:14.4]} 40... Rc2+ {[%clk 0:02:08.5]} 41. Kf1 {[%clk 0:02:12.8]}
41... Bd2 {[%clk 0:01:59]} 42. Bxd2 {[%clk 0:02:02.4]} 42... Rxd2 {[%clk
0:01:59.9]} 43. Ne1 {[%clk 0:02:02.9]} 43... Rxd4 {[%clk 0:01:45.9]} 44. Rb7
{[%clk 0:02:02.8]} 44... Ra4 {[%clk 0:01:43.1]} 45. a7 {[%clk 0:02:03.2]} 45...
Ra2 {[%clk 0:01:32.3]} 46. Nd3 {[%clk 0:02:01]} 46... Ra1+ {[%clk 0:01:30.4]}
47. Ke2 {[%clk 0:02:00.7]} 47... Nf4+ {[%clk 0:01:30.9]} 48. Nxf4 {[%clk
0:02:00.4]} 48... gxf4 {[%clk 0:01:31.4]} 49. Rh7 {[%clk 0:01:47.8]} 49... h4
{[%clk 0:01:23.1]} 50. Kd3 {[%clk 0:01:44.3]} 50... e5 {[%clk 0:01:18.9]} 51.
Re7 {[%clk 0:01:44.1]} 51... e4+ {[%clk 0:01:13.5]} 52. Kd4 {[%clk 0:01:42.4]}
52... Ra4+ {[%clk 0:01:11.5]} 53. Kc5 {[%clk 0:01:42.3]} 53... Ra3 {[%clk
0:00:57.7]} 54. Kb6 {[%clk 0:01:41.4]} 54... Rb3+ {[%clk 0:00:53.6]} 55. Kc7
{[%clk 0:01:41]} 55... e3 {[%clk 0:00:44.2]} 56. fxe3 {[%clk 0:01:38.2]} 56...
Rc3+ {[%clk 0:00:41.8]} 57. Kb8 {[%clk 0:01:38]} 57... Rb3+ {[%clk 0:00:42.1]}
58. Rb7 {[%clk 0:01:35.1]} 58... Rxe3 {[%clk 0:00:35.3]} 59. Rb5+ {[%clk
0:01:30.3]} 59... Ke4 {[%clk 0:00:31.2]} 60. a8=Q+ {[%clk 0:01:29.7]} 60... Kd3
{[%clk 0:00:30.8]} 61. Qd5+ {[%clk 0:01:28.8]} 61... Ke2 {[%clk 0:00:31]} 62.
Rb2+ {[%clk 0:01:28.3]} 1-0

[Event "*** Titled Tuesday Blitz"]
[Site "Chess.com"]
[Date "2021.03.30"]
[Round "11"]
[White "woodhy"]
[Black "poneis_malditos"]
[Result "1-0"]
[WhiteElo "2434"]
[BlackElo "2288"]
[TimeControl "180+1"]
[EndTime "12:08:06 PDT"]
[Termination "woodhy won by resignation"]

1. e4 {[%clk 0:03:00.9]} 1... c5 {[%clk 0:02:58]} 2. Nf3 {[%clk 0:03:00]} 2...
e6 {[%clk 0:02:58]} 3. d4 {[%clk 0:02:59.6]} 3... cxd4 {[%clk 0:02:58.9]} 4.
Nxd4 {[%clk 0:03:00]} 4... a6 {[%clk 0:02:59.6]} 5. c4 {[%clk 0:02:59.9]} 5...
Nf6 {[%clk 0:02:58.2]} 6. Nc3 {[%clk 0:03:00.4]} 6... Qc7 {[%clk 0:02:58.6]} 7.
a3 {[%clk 0:02:55.9]} 7... Nxe4 {[%clk 0:02:57.2]} 8. Nxe4 {[%clk 0:02:52.1]}
8... Qe5 {[%clk 0:02:57.7]} 9. Qd3 {[%clk 0:02:48]} 9... d5 {[%clk 0:02:51.2]}
10. cxd5 {[%clk 0:02:46.3]} 10... exd5 {[%clk 0:02:52.1]} 11. Nf3 {[%clk
0:02:29.4]} 11... Qxe4+ {[%clk 0:02:51.5]} 12. Qxe4+ {[%clk 0:02:28.9]} 12...
dxe4 {[%clk 0:02:52.4]} 13. Ng5 {[%clk 0:02:29.3]} 13... Bf5 {[%clk 0:02:50.8]}
14. Bc4 {[%clk 0:02:29.1]} 14... Bg6 {[%clk 0:02:49.5]} 15. Bd5 {[%clk
0:02:22.6]} 15... Nc6 {[%clk 0:02:46.6]} 16. Bxe4 {[%clk 0:02:18.9]} 16... Bxe4
{[%clk 0:02:42]} 17. Nxe4 {[%clk 0:02:19.8]} 17... O-O-O {[%clk 0:02:37.2]} 18.
O-O {[%clk 0:02:19.9]} 18... h6 {[%clk 0:02:24.2]} 19. Be3 {[%clk 0:01:58.5]}
19... g5 {[%clk 0:02:18.7]} 20. Rac1 {[%clk 0:01:56.6]} 20... Kb8 {[%clk
0:02:10.4]} 21. Nc5 {[%clk 0:01:55.3]} 21... Ne5 {[%clk 0:02:02.6]} 22. h3
{[%clk 0:01:44.5]} 22... Bg7 {[%clk 0:02:01]} 23. f4 {[%clk 0:01:41.9]} 23...
Nd3 {[%clk 0:01:56.8]} 24. Rc2 {[%clk 0:01:26]} 24... gxf4 {[%clk 0:01:47.7]}
25. Nxd3 {[%clk 0:00:56.7]} 25... fxe3 {[%clk 0:01:46.5]} 26. Rxf7 {[%clk
0:00:53.3]} 26... Bd4 {[%clk 0:01:47]} 27. Kf1 {[%clk 0:00:47.8]} 27... Rhf8
{[%clk 0:01:45.5]} 28. Rxf8 {[%clk 0:00:46.5]} 28... Rxf8+ {[%clk 0:01:46.4]}
29. Ke2 {[%clk 0:00:46.6]} 29... h5 {[%clk 0:01:23.9]} 30. Rc4 {[%clk
0:00:44.6]} 30... Bb6 {[%clk 0:01:22.5]} 31. g4 {[%clk 0:00:28]} 31... h4 {[%clk
0:01:16.1]} 32. g5 {[%clk 0:00:25.4]} 32... Rg8 {[%clk 0:01:12.5]} 33. Rg4
{[%clk 0:00:22.8]} 33... Rg6 {[%clk 0:01:11.7]} 34. Ne5 {[%clk 0:00:20.4]} 34...
Rd6 {[%clk 0:01:09.1]} 35. Nc4 {[%clk 0:00:20.2]} 35... Re6 {[%clk 0:01:06]} 36.
g6 {[%clk 0:00:18.6]} 36... Bd4 {[%clk 0:00:58.2]} 37. g7 {[%clk 0:00:14.7]}
37... Bxg7 {[%clk 0:00:52.8]} 38. Rxg7 {[%clk 0:00:15.6]} 38... Re4 {[%clk
0:00:43.6]} 39. Rxb7+ {[%clk 0:00:14.7]} 39... Ka8 {[%clk 0:00:41.7]} 40. Rb4
{[%clk 0:00:14.3]} 40... Rf4 {[%clk 0:00:40.8]} 41. Nb6+ {[%clk 0:00:13.8]}
41... Ka7 {[%clk 0:00:41.7]} 42. Rxf4 {[%clk 0:00:13.8]} 42... Kxb6 {[%clk
0:00:42.6]} 43. Rxh4 {[%clk 0:00:13.8]} 1-0

[Event "*** Titled Tuesday Blitz"]
[Site "Chess.com"]
[Date "2021.03.30"]
[Round "11"]
[White "Magila31"]
[Black "Rytenko_V"]
[Result "1-0"]
[WhiteElo "2284"]
[BlackElo "2373"]
[TimeControl "180+1"]
[EndTime "12:08:08 PDT"]
[Termination "Magila31 won by resignation"]

1. d4 {[%clk 0:02:57.9]} 1... d5 {[%clk 0:02:59.7]} 2. c4 {[%clk 0:02:57.7]}
2... c6 {[%clk 0:02:59.3]} 3. Nf3 {[%clk 0:02:57]} 3... Nf6 {[%clk 0:02:59.4]}
4. Nc3 {[%clk 0:02:52.9]} 4... e6 {[%clk 0:02:58.8]} 5. Bg5 {[%clk 0:02:50.5]}
5... Be7 {[%clk 0:02:59.1]} 6. e3 {[%clk 0:02:49.5]} 6... O-O {[%clk 0:02:58.7]}
7. Qc2 {[%clk 0:02:47.9]} 7... h6 {[%clk 0:02:58.4]} 8. h4 {[%clk 0:02:40.7]}
8... Nbd7 {[%clk 0:02:50.2]} 9. O-O-O {[%clk 0:02:35.8]} 9... dxc4 {[%clk
0:02:44]} 10. Bxc4 {[%clk 0:02:34.1]} 10... Nb6 {[%clk 0:02:44.5]} 11. Be2
{[%clk 0:02:28.6]} 11... Nfd5 {[%clk 0:02:40.1]} 12. Bxe7 {[%clk 0:02:18]} 12...
Qxe7 {[%clk 0:02:37.1]} 13. g4 {[%clk 0:02:13.7]} 13... Nxc3 {[%clk 0:02:34.1]}
14. Qxc3 {[%clk 0:02:10.9]} 14... Nd5 {[%clk 0:01:57.2]} 15. Qc2 {[%clk
0:02:08.3]} 15... Bd7 {[%clk 0:01:49.3]} 16. g5 {[%clk 0:02:03.6]} 16... h5
{[%clk 0:01:49.3]} 17. Ne5 {[%clk 0:02:01.7]} 17... g6 {[%clk 0:01:48.7]} 18.
Kb1 {[%clk 0:01:50.9]} 18... Rac8 {[%clk 0:01:43.1]} 19. Qc5 {[%clk 0:01:48.6]}
19... Rfd8 {[%clk 0:01:25.9]} 20. Qxe7 {[%clk 0:01:44]} 20... Nxe7 {[%clk
0:01:25.5]} 21. Bf3 {[%clk 0:01:41.9]} 21... Be8 {[%clk 0:01:18]} 22. Be4 {[%clk
0:01:34.6]} 22... Kg7 {[%clk 0:01:10.4]} 23. Rc1 {[%clk 0:01:32.4]} 23... b6
{[%clk 0:00:45]} 24. a3 {[%clk 0:01:27.8]} 24... c5 {[%clk 0:00:45]} 25. dxc5
{[%clk 0:01:24.4]} 25... bxc5 {[%clk 0:00:45.5]} 26. Rhd1 {[%clk 0:01:22.9]}
26... Rxd1 {[%clk 0:00:41.7]} 27. Rxd1 {[%clk 0:01:22.7]} 27... Ba4 {[%clk
0:00:25.7]} 28. Rd2 {[%clk 0:01:17.6]} 28... Rc7 {[%clk 0:00:22.1]} 29. Ka2
{[%clk 0:01:15.4]} 29... c4 {[%clk 0:00:20.9]} 30. Bc2 {[%clk 0:01:04]} 30...
Bb5 {[%clk 0:00:13.3]} 31. a4 {[%clk 0:01:00.8]} 31... Ba6 {[%clk 0:00:12.1]}
32. Rd6 {[%clk 0:00:58.8]} 32... Bb7 {[%clk 0:00:10.5]} 33. Ka3 {[%clk
0:00:55.2]} 33... c3 {[%clk 0:00:07]} 34. b4 {[%clk 0:00:53.4]} 34... Bd5 {[%clk
0:00:04.5]} 35. Rd7 {[%clk 0:00:47.1]} 35... Rxd7 {[%clk 0:00:02]} 36. Nxd7
{[%clk 0:00:47.2]} 36... Nc6 {[%clk 0:00:02.1]} 37. b5 {[%clk 0:00:43]} 37...
Ne5 {[%clk 0:00:02.2]} 38. Nxe5 {[%clk 0:00:41.7]} 1-0

[Event "*** Titled Tuesday Blitz"]
[Site "Chess.com"]
[Date "2021.03.30"]
[Round "11"]
[White "BanjoKazooieN64"]
[Black "skeyman"]
[Result "1-0"]
[WhiteElo "2543"]
[BlackElo "2226"]
[TimeControl "180+1"]
[EndTime "12:08:09 PDT"]
[Termination "BanjoKazooieN64 won by checkmate"]

1. e4 {[%clk 0:02:04.4]} 1... c5 {[%clk 0:02:59.2]} 2. Nc3 {[%clk 0:02:03.2]}
2... e6 {[%clk 0:02:59.2]} 3. f4 {[%clk 0:02:03.2]} 3... Nc6 {[%clk 0:02:59.2]}
4. Nf3 {[%clk 0:02:02.7]} 4... d5 {[%clk 0:02:59.4]} 5. Bb5 {[%clk 0:01:59.2]}
5... dxe4 {[%clk 0:02:56.6]} 6. Nxe4 {[%clk 0:01:58.7]} 6... Nf6 {[%clk
0:02:56.3]} 7. Bxc6+ {[%clk 0:01:58.7]} 7... bxc6 {[%clk 0:02:56.1]} 8. Nxf6+
{[%clk 0:01:57.9]} 8... gxf6 {[%clk 0:02:55.8]} 9. O-O {[%clk 0:01:57.4]} 9...
Ba6 {[%clk 0:02:53.3]} 10. d3 {[%clk 0:01:57.5]} 10... c4 {[%clk 0:02:53.1]} 11.
dxc4 {[%clk 0:01:52.6]} 11... Bxc4 {[%clk 0:02:51.3]} 12. Re1 {[%clk 0:01:52.7]}
12... Bc5+ {[%clk 0:02:49.8]} 13. Kh1 {[%clk 0:01:51.7]} 13... Bf2 {[%clk
0:02:47.2]} 14. Bd2 {[%clk 0:01:46.3]} 14... Bxe1 {[%clk 0:02:45.4]} 15. Qxe1
{[%clk 0:01:47.2]} 15... Bd5 {[%clk 0:02:39.6]} 16. Nh4 {[%clk 0:01:32.5]} 16...
Rg8 {[%clk 0:02:38.5]} 17. b3 {[%clk 0:01:26.4]} 17... c5 {[%clk 0:02:35.9]} 18.
Rd1 {[%clk 0:01:24.1]} 18... f5 {[%clk 0:02:32.1]} 19. c4 {[%clk 0:01:17.1]}
19... Be4 {[%clk 0:02:26.3]} 20. Bc3 {[%clk 0:01:13.3]} 20... Qc7 {[%clk
0:02:05.7]} 21. Be5 {[%clk 0:01:13]} 21... Qc6 {[%clk 0:02:05.5]} 22. Rd2 {[%clk
0:01:02.6]} 22... Rg4 {[%clk 0:01:59.9]} 23. h3 {[%clk 0:01:00.5]} 23... Rg8
{[%clk 0:01:24.3]} 24. Bf6 {[%clk 0:01:00]} 24... e5 {[%clk 0:01:12.6]} 25. fxe5
{[%clk 0:00:57.3]} 25... a5 {[%clk 0:01:05]} 26. Qd1 {[%clk 0:00:51.9]} 26...
Qc7 {[%clk 0:00:54.3]} 27. Rd6 {[%clk 0:00:51.9]} 27... a4 {[%clk 0:00:50.3]}
28. bxa4 {[%clk 0:00:39.1]} 28... Rb8 {[%clk 0:00:49.6]} 29. Kh2 {[%clk
0:00:37.2]} 29... Ra8 {[%clk 0:00:18.9]} 30. a5 {[%clk 0:00:37.1]} 30... Rb8
{[%clk 0:00:18.9]} 31. a6 {[%clk 0:00:37.2]} 31... Ra8 {[%clk 0:00:18]} 32. a7
{[%clk 0:00:37.4]} 32... Rg6 {[%clk 0:00:14.7]} 33. Nxg6 {[%clk 0:00:32.7]}
33... hxg6 {[%clk 0:00:13.7]} 34. Qd2 {[%clk 0:00:28.1]} 34... Kf8 {[%clk
0:00:12.9]} 35. Qh6+ {[%clk 0:00:27.7]} 35... Ke8 {[%clk 0:00:13.3]} 36. Qh8#
{[%clk 0:00:27.7]} 1-0

[Event "*** Titled Tuesday Blitz"]
[Site "Chess.com"]
[Date "2021.03.30"]
[Round "11"]
[White "Julianos82"]
[Black "rugbyclub"]
[Result "1-0"]
[WhiteElo "2376"]
[BlackElo "2264"]
[TimeControl "180+1"]
[EndTime "12:08:13 PDT"]
[Termination "Julianos82 won by resignation"]

1. d4 {[%clk 0:03:00.9]} 1... Nf6 {[%clk 0:02:59.6]} 2. Nf3 {[%clk 0:03:00.6]}
2... g6 {[%clk 0:02:59.7]} 3. c4 {[%clk 0:03:00.1]} 3... Bg7 {[%clk 0:02:59.4]}
4. Nc3 {[%clk 0:03:01]} 4... O-O {[%clk 0:02:59.3]} 5. e4 {[%clk 0:03:00.3]}
5... d6 {[%clk 0:02:59.3]} 6. Be2 {[%clk 0:03:00.9]} 6... e5 {[%clk 0:02:58.4]}
7. Be3 {[%clk 0:03:00.8]} 7... h6 {[%clk 0:02:51.4]} 8. dxe5 {[%clk 0:02:47.7]}
8... dxe5 {[%clk 0:02:50.4]} 9. Qxd8 {[%clk 0:02:45.2]} 9... Rxd8 {[%clk
0:02:50]} 10. Nd5 {[%clk 0:02:41.1]} 10... Nxd5 {[%clk 0:02:39.9]} 11. cxd5
{[%clk 0:02:42]} 11... c6 {[%clk 0:02:38.5]} 12. Rd1 {[%clk 0:02:35.6]} 12...
cxd5 {[%clk 0:02:36.7]} 13. exd5 {[%clk 0:02:36.5]} 13... Nd7 {[%clk 0:02:30.1]}
14. O-O {[%clk 0:02:32]} 14... Nb6 {[%clk 0:02:14.3]} 15. Bxb6 {[%clk
0:02:25.4]} 15... axb6 {[%clk 0:02:13.5]} 16. a3 {[%clk 0:02:24.7]} 16... e4
{[%clk 0:02:03.6]} 17. Nd2 {[%clk 0:02:11.3]} 17... f5 {[%clk 0:02:02.9]} 18.
Nc4 {[%clk 0:02:09]} 18... Bd7 {[%clk 0:01:49.4]} 19. Nxb6 {[%clk 0:02:05]}
19... Rab8 {[%clk 0:01:45.2]} 20. Rd2 {[%clk 0:01:57.4]} 20... Kf7 {[%clk
0:01:32.4]} 21. Rc1 {[%clk 0:01:55.8]} 21... Be5 {[%clk 0:01:27]} 22. d6 {[%clk
0:01:38.9]} 22... Bf4 {[%clk 0:01:11.9]} 23. Rdc2 {[%clk 0:01:33]} 23... Bxc1
{[%clk 0:01:09.6]} 24. Rxc1 {[%clk 0:01:33.9]} 24... Ke6 {[%clk 0:01:07.8]} 25.
Rd1 {[%clk 0:01:12.5]} 25... Bc6 {[%clk 0:00:57.6]} 26. Bc4+ {[%clk 0:01:10.9]}
26... Ke5 {[%clk 0:00:55.1]} 27. d7 {[%clk 0:01:10.4]} 27... f4 {[%clk
0:00:52.4]} 28. b4 {[%clk 0:01:08.6]} 28... e3 {[%clk 0:00:49]} 29. fxe3 {[%clk
0:01:05.6]} 29... fxe3 {[%clk 0:00:48.7]} 30. Kf1 {[%clk 0:00:59.1]} 30... Bxd7
{[%clk 0:00:16.7]} 31. Nxd7+ {[%clk 0:00:51.3]} 31... Rxd7 {[%clk 0:00:16.4]}
32. Rxd7 {[%clk 0:00:51.7]} 32... Rf8+ {[%clk 0:00:13.7]} 33. Ke2 {[%clk
0:00:50.2]} 33... Rf2+ {[%clk 0:00:14.3]} 34. Kxe3 {[%clk 0:00:50.4]} 34... Rxg2
{[%clk 0:00:14.8]} 35. Rd5+ {[%clk 0:00:45.1]} 35... Kf6 {[%clk 0:00:14.1]} 36.
Rd2 {[%clk 0:00:39.1]} 36... Rg5 {[%clk 0:00:13.1]} 37. Rd6+ {[%clk 0:00:35.7]}
37... Ke7 {[%clk 0:00:11.9]} 38. Rb6 {[%clk 0:00:34.9]} 1-0

[Event "*** Titled Tuesday Blitz"]
[Site "Chess.com"]
[Date "2021.03.30"]
[Round "11"]
[White "Bigfish1995"]
[Black "Iskusnyh"]
[Result "1-0"]
[WhiteElo "2984"]
[BlackElo "2648"]
[TimeControl "180+1"]
[EndTime "12:08:14 PDT"]
[Termination "Bigfish1995 won on time"]

1. g4 {[%clk 0:03:00.9]} 1... d5 {[%clk 0:02:56.9]} 2. g5 {[%clk 0:03:00]} 2...
e5 {[%clk 0:02:54.7]} 3. d4 {[%clk 0:02:58.3]} 3... e4 {[%clk 0:02:52.6]} 4. c4
{[%clk 0:02:55.4]} 4... h6 {[%clk 0:02:47.6]} 5. Nc3 {[%clk 0:02:54.9]} 5... c6
{[%clk 0:02:46.3]} 6. g6 {[%clk 0:02:35.4]} 6... fxg6 {[%clk 0:02:38.8]} 7. Bf4
{[%clk 0:02:35.5]} 7... Nf6 {[%clk 0:02:36.3]} 8. e3 {[%clk 0:02:32]} 8... Bd6
{[%clk 0:02:24.4]} 9. Nge2 {[%clk 0:02:23.3]} 9... O-O {[%clk 0:02:20.3]} 10.
Qb3 {[%clk 0:02:22.4]} 10... Bxf4 {[%clk 0:02:13.7]} 11. Nxf4 {[%clk 0:02:20.4]}
11... g5 {[%clk 0:02:13.6]} 12. Ng6 {[%clk 0:02:20]} 12... Re8 {[%clk
0:02:03.1]} 13. cxd5 {[%clk 0:02:17]} 13... cxd5 {[%clk 0:02:01.7]} 14. h4
{[%clk 0:02:16.8]} 14... gxh4 {[%clk 0:01:51.3]} 15. Rxh4 {[%clk 0:02:14.2]}
15... Nc6 {[%clk 0:01:50.7]} 16. Bb5 {[%clk 0:02:12.5]} 16... Bf5 {[%clk
0:01:48]} 17. Nf4 {[%clk 0:01:59.2]} 17... a6 {[%clk 0:01:30.7]} 18. Be2 {[%clk
0:01:48]} 18... Na5 {[%clk 0:01:21.2]} 19. Qa3 {[%clk 0:01:45]} 19... Rc8 {[%clk
0:01:17]} 20. Kd2 {[%clk 0:01:40]} 20... Nc4+ {[%clk 0:01:13]} 21. Bxc4 {[%clk
0:01:38.2]} 21... Rxc4 {[%clk 0:01:13.5]} 22. Rg1 {[%clk 0:01:38.4]} 22... Kh7
{[%clk 0:01:05.8]} 23. Rh2 {[%clk 0:01:23]} 23... b5 {[%clk 0:01:03.2]} 24. Qxa6
{[%clk 0:01:20.4]} 24... Qa8 {[%clk 0:00:27.5]} 25. Qd6 {[%clk 0:00:57.3]} 25...
Rxc3 {[%clk 0:00:26.5]} 26. Rhg2 {[%clk 0:00:24.4]} 26... Rd3+ {[%clk
0:00:24.8]} 27. Nxd3 {[%clk 0:00:23]} 27... exd3 {[%clk 0:00:21.7]} 28. Rxg7+
{[%clk 0:00:22.7]} 28... Kh8 {[%clk 0:00:21.3]} 29. Qxf6 {[%clk 0:00:20.3]}
29... Qa5+ {[%clk 0:00:20.9]} 30. Kd1 {[%clk 0:00:20.8]} 30... Qa4+ {[%clk
0:00:20.7]} 31. b3 {[%clk 0:00:21.3]} 1-0